bitfinex-derivatives/quotes_SOLF0:USTF0_20250518
["timestamp","ask_amount","ask_price","bid_price","bid_amount"]
[1747596027776,69.27019737,169.64,169.52,63.8]
[1747596027980,63.8,169.63,169.52,63.8]
[1747596028282,5.43019737,169.64,169.52,63.8]
[1747596029681,5.43019737,169.64,169.63,5.8932]
[1747596030081,63.8,169.65,169.63,5.8932]
[1747596031585,63.8,169.65,169.57,69.6923]
[1747596031883,63.84,169.67,169.57,69.6923]
[1747596032083,63.84,169.67,169.65,5.8923]
[1747596032482,63.84,169.67,169.61,63.84]
[1747596032682,63.84,169.67,169.65,5.8923]
[1747596033181,63.84,169.67,169.65,5.8922]
[1747596036576,72.75386246,169.67,169.63,5.893]
[1747596036779,72.75386246,169.67,169.61,63.84]
[1747596037285,72.75386246,169.67,169.64,5.8925]
[1747596037482,63.84,169.67,169.61,63.84]
[1747596037987,63.8,169.68,169.61,63.84]
[1747596038188,63.8,169.68,169.65,5.8923]
[1747596040189,5.8911,169.69,169.65,5.8923]
[1747596040391,69.6511,169.69,169.65,5.8923]
[1747596040692,5.8917,169.68,169.64,5.8926]
[1747596040990,63.76,169.69,169.59,63.84]
[1747596041390,63.76,169.69,169.66,5.892]
[1747596041690,63.76,169.7,169.66,5.892]
[1747596042590,69.651,169.7,169.66,5.892]
[1747596043394,63.76,169.7,169.67,5.8917]
[1747596043890,78.64436246,169.71,169.67,5.8917]
[1747596044098,5.43019737,169.72,169.64,63.74]
[1747596044483,5.43019737,169.72,169.65,5.8316]
[1747596044683,5.43019737,169.72,169.71,5.8904]
[1747596045202,63.74,169.74,169.71,5.8904]
[1747596045590,63.74,169.74,169.7,5.8906]
[1747596045799,63.74,169.74,169.65,5.8316]
[1747596046094,83.97285983,169.76,169.65,5.8316]
[1747596046299,78.08405983,169.76,169.65,5.8316]
[1747596046899,63.72,169.75,169.65,5.8316]
[1747596047098,63.72,169.75,169.7,5.8905]
[1747596047297,63.72,169.75,169.65,5.8316]
[1747596048803,63.72,169.75,169.72,5.89]
[1747596049005,63.72,169.77,169.68,63.74]
[1747596049309,63.74,169.78,169.75,5.889]
[1747596049495,5.43019737,169.79,169.72,63.72]
[1747596050399,5.43019737,169.79,169.77,5.888]
[1747596050703,5.43019737,169.79,169.73,1.9719]
[1747596051202,5.43019737,169.79,169.78,5.888]
[1747596052203,63.7,169.83,169.77,63.72]
[1747596052801,63.7,169.83,169.8,5.887]
[1747596053106,63.7,169.83,169.77,63.72]
[1747596053599,5.8867,169.82,169.77,63.72]
[1747596053904,63.7,169.83,169.77,63.72]
[1747596055008,72.61386246,169.83,169.77,63.72]
[1747596055306,5.8873,169.8,169.73,129.3519]
[1747596055604,72.61386246,169.83,169.68,8.91386246]
[1747596055809,72.61386246,169.83,169.69,127.36]
[1747596056508,63.7,169.82,169.69,63.7]
[1747596056797,8.91386246,169.85,169.7,63.66]
[1747596057009,63.66,169.82,169.7,63.66]
[1747596057594,69.5468,169.82,169.7,63.66]
[1747596057900,63.66,169.82,169.7,63.66]
[1747596058906,63.66,169.82,169.78,5.888]
[1747596060811,69.5466,169.82,169.77,5.8882]
[1747596061010,63.66,169.82,169.75,63.7]
[1747596061310,63.66,169.82,169.78,5.8877]
[1747596061810,63.66,169.82,169.79,5.8876]
[1747596062513,63.7,169.84,169.8,5.8873]
[1747596062907,63.7,169.84,169.79,5.8875]
[1747596063108,63.7,169.84,169.75,65.7162]
[1747596063714,63.7,169.84,169.75,63.7]
[1747596064107,5.8875,169.8,169.76,5.8886]
[1747596064306,63.62,169.81,169.75,63.7]
[1747596064610,63.68,169.8,169.73,5.8897]
[1747596064809,8.91386246,169.79,169.7,63.68]
[1747596065307,8.91386246,169.76,169.7,63.68]
[1747596065520,63.62,169.75,169.7,63.68]
[1747596066015,5.8894,169.74,169.66,509.06]
[1747596066214,5.8894,169.74,169.66,572.74]
[1747596066407,63.62,169.75,169.66,572.74]
[1747596066608,5.8895,169.74,169.7,5.8905]
[1747596066804,5.8895,169.74,169.66,572.74]
[1747596066805,63.62,169.75,169.66,572.74]
[1747596067008,8.91386246,169.73,169.66,63.68]
[1747596067410,63.62,169.75,169.66,63.68]
[1747596067914,8.91386246,169.76,169.66,63.68]
[1747596068113,63.62,169.74,169.66,63.68]
[1747596069017,63.62,169.74,169.7,5.8907]
[1747596069217,63.62,169.74,169.66,63.68]
[1747596069618,69.5095,169.74,169.66,63.68]
[1747596069914,63.62,169.74,169.66,127.28]
[1747596070106,63.62,169.74,169.71,5.8903]
[1747596072025,63.62,169.74,169.69,5.8908]
[1747596072316,5.8904,169.71,169.66,127.28]
[1747596072715,63.62,169.74,169.66,127.28]
[1747596073108,5.8904,169.72,169.66,127.28]
[1747596073615,5.8904,169.71,169.68,5.8914]
[1747596073808,63.62,169.74,169.66,63.68]
[1747596074014,4.0396,169.73,169.66,63.68]
[1747596074214,9.9296,169.73,169.66,63.68]
[1747596074617,4.0396,169.73,169.66,63.68]
[1747596074818,63.62,169.74,169.66,63.68]
[1747596075118,63.7,169.76,169.67,63.6]
[1747596075316,1.9397,169.78,169.67,63.6]
[1747596075512,5.43019737,169.79,169.68,8.91386246]
[1747596076423,5.43019737,169.79,169.75,5.8888]
[1747596076718,133.0873,169.8,169.68,8.91386246]
[1747596076719,133.0873,169.8,169.73,63.6]
[1747596076918,63.6,169.8,169.73,63.6]
[1747596078021,69.4874,169.8,169.73,63.6]
[1747596078208,63.6,169.8,169.73,63.6]
[1747596078624,2.0366,169.81,169.73,63.6]
[1747596078918,127.18,169.83,169.73,63.6]
[1747596079120,76.88569737,169.85,169.8,5.8872]
[1747596079514,65.5698,169.85,169.77,63.6]
[1747596080017,67.4404,169.87,169.77,63.6]
[1747596080221,64.75744024,169.86,169.77,63.6]
[1747596080415,64.75744024,169.86,169.72,5.9151]
[1747596080620,64.75744024,169.86,169.73,127.18]
[1747596080820,5.886,169.84,169.73,127.18]
[1747596081320,63.58,169.85,169.73,127.18]
[1747596081520,5.8867,169.82,169.73,127.18]
[1747596082018,5.8867,169.82,169.77,5.8881]
[1747596082226,1.17744024,169.86,169.78,63.58]
[1747596082726,1.17744024,169.86,169.8,5.887]
[1747596083025,5.8857,169.85,169.78,63.58]
[1747596083323,5.8857,169.85,169.8,5.8873]
[1747596083623,5.8857,169.85,169.78,63.58]
[1747596083817,5.8857,169.85,169.81,5.8868]
[1747596084126,5.43019737,169.87,169.78,63.58]
[1747596084422,68.99019737,169.87,169.78,63.58]
[1747596085320,63.58,169.86,169.78,69.4679]
[1747596085519,14.24649198,169.84,169.72,133.0351]
[1747596085718,65.5493,169.83,169.72,133.0351]
[1747596085925,63.58,169.82,169.72,133.0351]
[1747596086224,63.58,169.82,169.72,69.4951]
[1747596086422,5.8875,169.8,169.76,5.8884]
[1747596086625,63.58,169.82,169.76,5.8884]
[1747596086924,5.8875,169.8,169.76,5.8884]
[1747596087126,63.58,169.82,169.72,69.4951]
[1747596087521,5.8872,169.81,169.72,69.4951]
[1747596087826,5.8872,169.81,169.77,5.8882]
[1747596088323,5.8872,169.81,169.78,5.8879]
[1747596088530,63.58,169.82,169.72,69.4951]
[1747596089229,68.97019737,169.84,169.72,69.4951]
[1747596089830,68.97019737,169.84,169.81,5.8867]
[1747596090023,68.97019737,169.84,169.79,63.58]
[1747596090339,5.43019737,169.84,169.79,63.58]
[1747596090625,5.43019737,169.84,169.83,5.8863]
[1747596091130,5.43019737,169.84,169.79,63.58]
[1747596091628,5.43019737,169.84,169.83,5.8863]
[1747596092529,7.9103,169.87,169.83,5.8863]
[1747596092730,2.0254,169.87,169.83,5.8863]
[1747596093228,2.0254,169.87,169.73,14.24649198]
[1747596093425,63.58,169.86,169.74,63.58]
[1747596093916,5.8866,169.83,169.78,5.8879]
[1747596094122,63.5,169.84,169.74,63.58]
[1747596094317,63.5,169.84,169.76,5.8886]
[1747596094528,63.5,169.84,169.74,63.58]
[1747596095131,1.9081,169.83,169.74,63.58]
[1747596095324,63.56,169.82,169.74,63.58]
[1747596095519,65.5766,169.82,169.74,63.58]
[1747596096029,5.8877,169.79,169.75,5.889]
[1747596096430,63.5,169.8,169.74,63.58]
[1747596096629,63.5,169.8,169.78,5.8879]
[1747596096930,63.5,169.8,169.74,63.58]
[1747596097829,63.5,169.84,169.74,63.58]
[1747596098528,5.8863,169.83,169.79,5.8874]
[1747596100129,69.01019737,169.86,169.78,63.58]
[1747596100468,132.49019737,169.86,169.78,63.58]
[1747596101180,5.8857,169.85,169.81,5.8867]
[1747596101355,132.49019737,169.86,169.78,63.58]
[1747596101747,5.8865,169.83,169.78,69.4677]
[1747596102056,132.49019737,169.86,169.78,69.4677]
[1747596102548,127.06,169.86,169.78,63.58]
[1747596103354,5.8863,169.83,169.8,5.8871]
[1747596104156,5.8866,169.82,169.79,5.8876]
[1747596105550,5.8864,169.83,169.8,5.8873]
[1747596105738,5.8864,169.83,169.78,63.58]
[1747596105926,5.8866,169.82,169.79,5.8875]
[1747596106632,5.887,169.81,169.78,69.4679]
[1747596106832,63.46,169.82,169.73,63.46]
[1747596107033,126.92,169.82,169.73,63.46]
[1747596107326,126.92,169.82,169.75,5.8888]
[1747596107739,126.92,169.82,169.73,63.46]
[1747596108039,5.8874,169.8,169.76,5.8883]
[1747596108237,126.92,169.82,169.73,63.46]
[1747596109040,126.92,169.82,169.77,5.8882]
[1747596109933,63.46,169.82,169.77,5.8882]
[1747596110133,126.92,169.82,169.77,5.8882]
[1747596110541,5.8875,169.8,169.77,5.8882]
[1747596110733,126.92,169.82,169.73,63.46]
[1747596111228,5.8879,169.79,169.75,5.889]
[1747596111534,126.92,169.82,169.75,5.889]
[1747596112941,5.8879,169.79,169.76,5.8886]
[1747596114040,5.888,169.78,169.75,5.8889]
[1747596114342,126.92,169.82,169.73,63.46]
[1747596114844,63.46,169.82,169.73,63.46]
[1747596115045,126.9,169.82,169.73,63.46]
[1747596115535,5.8873,169.8,169.77,5.8881]
[1747596116442,8.91032122,169.81,169.62,22.59225392]
[1747596116743,5.8889,169.76,169.72,5.8898]
[1747596117543,5.8889,169.76,169.69,63.46]
[1747596118049,5.8889,169.76,169.73,5.8894]
[1747596118240,63.44,169.77,169.69,126.9]
[1747596118640,63.44,169.77,169.75,5.889]
[1747596119143,5.43019737,169.79,169.73,63.48]
[1747596119744,5.43019737,169.79,169.73,126.92]
[1747596120046,5.43019737,169.79,169.78,5.888]
[1747596120844,32.43019737,169.84,169.77,5.8882]
[1747596121043,68.85019737,169.84,169.77,5.8882]
[1747596121239,5.8872,169.81,169.77,5.8882]
[1747596122445,5.8872,169.81,169.78,5.888]
[1747596122647,68.85019737,169.84,169.74,2.0482]
[1747596122951,68.85019737,169.84,169.77,5.8881]
[1747596123155,5.8872,169.81,169.77,5.8881]
[1747596123546,5.8872,169.81,169.78,5.8879]
[1747596124252,5.8867,169.82,169.78,5.8879]
[1747596125739,5.887,169.81,169.78,5.8879]
[1747596125948,63.42,169.83,169.76,5.8884]
[1747596126253,5.8879,169.79,169.73,63.46]
[1747596126441,63.42,169.83,169.73,63.46]
[1747596126841,5.8873,169.81,169.73,63.46]
[1747596127250,5.43019737,169.82,169.73,63.46]
[1747596127552,11.31699737,169.82,169.73,63.46]
[1747596127847,5.43019737,169.82,169.73,63.46]
[1747596128052,5.8871,169.81,169.73,63.46]
[1747596128950,5.8871,169.81,169.77,5.8881]
[1747596129151,5.43019737,169.82,169.73,63.46]
[1747596129550,5.43019737,169.82,169.75,5.8888]
[1747596130254,5.43019737,169.81,169.75,5.8888]
[1747596130551,5.43019737,169.81,169.76,5.8886]
[1747596131551,5.8879,169.79,169.76,5.8886]
[1747596132552,5.888,169.78,169.75,5.8889]
[1747596133650,5.888,169.78,169.76,5.8887]
[1747596133850,5.43019737,169.81,169.73,63.46]
[1747596135254,5.8874,169.8,169.77,5.8881]
[1747596135456,5.43019737,169.81,169.73,63.46]
[1747596136353,5.43019737,169.81,169.76,5.8886]
[1747596136754,5.43019737,169.8,169.76,5.8886]
[1747596136953,5.8879,169.79,169.76,5.8886]
[1747596137459,5.888,169.78,169.76,5.8886]
[1747596137754,5.43019737,169.8,169.76,5.8886]
[1747596137954,11.31759737,169.8,169.73,63.46]
[1747596138255,5.43019737,169.8,169.73,63.46]
[1747596138553,5.43019737,169.8,169.77,5.8881]
[1747596138758,11.31749737,169.8,169.73,63.46]
[1747596139056,11.31749737,169.8,169.77,5.8881]
[1747596139757,5.8873,169.8,169.77,5.8881]
[1747596139952,5.8877,169.79,169.76,5.8885]
[1747596140561,68.79019737,169.82,169.76,5.8885]
[1747596140857,5.8874,169.8,169.76,5.8885]
[1747596141260,5.8874,169.8,169.77,5.8882]
[1747596142054,5.8871,169.81,169.77,5.8882]
[1747596142657,5.8874,169.8,169.77,5.8882]
[1747596143659,5.887,169.81,169.78,5.888]
[1747596143854,68.79019737,169.82,169.73,63.46]
[1747596144153,5.43019737,169.82,169.8,5.8872]
[1747596144458,5.43019737,169.82,169.77,63.36]
[1747596144658,5.43019737,169.82,169.78,63.36]
[1747596144852,5.43019737,169.82,169.81,5.8869]
[1747596146557,5.43019737,169.86,169.8,63.32]
[1747596146952,5.43019737,169.86,169.81,5.8866]
[1747596147259,5.8857,169.85,169.81,5.8866]
[1747596148459,11.31549737,169.86,169.82,5.8866]
[1747596149261,5.8856,169.85,169.81,5.8869]
[1747596149760,5.43019737,169.87,169.8,63.36]
[1747596150259,5.8855,169.86,169.82,5.8866]
[1747596150565,5.43019737,169.87,169.8,63.36]
[1747596150860,5.8856,169.85,169.82,5.8866]
[1747596151563,69.1853,169.86,169.82,5.8866]
[1747596152563,69.1853,169.86,169.83,5.8862]
[1747596155865,63.3,169.86,169.79,67.2334]
[1747596156063,63.3,169.86,169.79,63.34]
[1747596156661,63.3,169.86,169.82,5.8863]
[1747596156962,69.1853,169.86,169.82,5.8863]
[1747596157159,63.3,169.86,169.82,5.8863]
[1747596157368,63.3,169.86,169.79,63.34]
[1747596157862,5.8861,169.84,169.81,5.8869]
[1747596158064,63.3,169.86,169.79,63.34]
[1747596159163,5.43019737,169.88,169.79,63.34]
[1747596160064,11.31499737,169.88,169.83,5.886]
[1747596160267,5.43019737,169.88,169.79,63.34]
[1747596161068,5.43019737,169.88,169.8,65.2272]
[1747596161364,5.43019737,169.88,169.85,5.8854]
[1747596161566,5.43019737,169.88,169.8,67.124]
[1747596163265,5.8844,169.89,169.8,67.124]
[1747596163463,5.8844,169.89,169.85,5.8853]
[1747596165066,69.1239,169.9,169.86,5.885]
[1747596165267,63.24,169.9,169.86,5.885]
[1747596165767,5.884,169.9,169.86,5.885]
[1747596165966,69.104,169.9,169.87,5.8848]
[1747596166168,5.43019737,169.91,169.83,63.34]
[1747596166368,5.43019737,169.91,169.84,65.1693]
[1747596166569,5.43019737,169.91,169.9,5.8838]
[1747596166965,5.43019737,169.93,169.87,63.22]
[1747596167265,5.43019737,169.93,169.91,5.8834]
[1747596168682,5.43019737,169.93,169.92,5.8831]
[1747596170266,5.8822,169.95,169.92,5.8831]
[1747596172678,5.8819,169.96,169.93,5.8827]
[1747596173477,5.8819,169.96,169.92,5.883]
[1747596174474,130.3184,169.97,169.88,1.8867]
[1747596175375,5.8827,169.94,169.91,5.8832]
[1747596175578,126.42,169.97,169.88,1.8867]
[1747596175771,126.42,169.97,169.88,65.0467]
[1747596175972,126.42,169.97,169.92,5.8829]
[1747596176172,126.42,169.97,169.88,65.0467]
[1747596176577,5.8825,169.94,169.91,5.8832]
[1747596176879,126.42,169.97,169.88,65.0467]
[1747596177178,5.8827,169.94,169.88,65.0467]
[1747596177375,126.42,169.97,169.88,65.0467]
[1747596178275,5.8824,169.95,169.91,5.8833]
[1747596179691,5.8825,169.94,169.91,5.8833]
[1747596179894,126.42,169.97,169.9,5.8837]
[1747596180491,5.8827,169.94,169.91,5.8835]
[1747596181200,5.8827,169.94,169.86,1.9292]
[1747596181201,126.42,169.97,169.86,1.9292]
[1747596181489,128.4214,169.97,169.86,65.1092]
[1747596182193,128.4214,169.97,169.86,63.18]
[1747596182680,5.43019737,169.95,169.83,63.18]
[1747596182885,8.90845166,169.92,169.83,63.18]
[1747596183092,126.3,169.91,169.83,63.18]
[1747596183291,5.8848,169.88,169.83,63.18]
[1747596183595,126.3,169.91,169.83,63.18]
[1747596183787,126.3,169.91,169.8,1.8765]
[1747596184093,126.3,169.91,169.83,5.8862]
[1747596184590,126.3,169.91,169.82,5.8865]
[1747596184789,126.3,169.91,169.8,63.18]
[1747596184994,1.9491,169.9,169.8,63.18]
[1747596185293,5.886,169.84,169.81,5.8869]
[1747596185697,63.1,169.86,169.8,69.0672]
[1747596186498,63.1,169.86,169.8,63.18]
[1747596187001,5.8863,169.83,169.8,69.0672]
[1747596187199,63.1,169.86,169.78,508.64]
[1747596187900,5.8859,169.84,169.8,5.8872]
[1747596188102,63.1,169.86,169.77,63.2]
[1747596188494,5.8864,169.83,169.79,5.8874]
[1747596189004,5.8867,169.82,169.79,5.8874]
[1747596189705,5.8864,169.83,169.79,5.8874]
[1747596190606,72.00845166,169.86,169.75,1.9465]
[1747596190904,8.90845166,169.83,169.72,65.2204]
[1747596191099,5.888,169.78,169.72,65.2204]
[1747596191303,5.888,169.78,169.74,5.8891]
[1747596191505,130.2261,169.82,169.72,65.2204]
[1747596191701,5.8877,169.79,169.72,65.2204]
[1747596191898,5.8877,169.79,169.75,5.8887]
[1747596192098,5.43019737,169.88,169.72,65.2204]
[1747596192099,63.2,169.86,169.76,63.2]
[1747596192299,63.1,169.85,169.76,63.2]
[1747596192501,5.8861,169.84,169.8,5.8871]
[1747596192803,5.43019737,169.83,169.76,63.2]
[1747596193006,11.31679737,169.83,169.79,5.8875]
[1747596193505,11.31679737,169.83,169.8,5.8873]
[1747596193705,5.43019737,169.83,169.8,5.8873]
[1747596195003,11.31649737,169.83,169.8,5.8873]
[1747596195403,5.43019737,169.83,169.76,63.2]
[1747596195603,68.9652,169.86,169.77,2.0391]
[1747596195798,63.08,169.86,169.77,2.0391]
[1747596196003,63.08,169.86,169.84,5.8859]
[1747596196205,5.43019737,169.87,169.81,63.08]
[1747596197006,5.43019737,169.87,169.85,5.8854]
[1747596197700,5.43019737,169.87,169.82,1.9433]
[1747596198617,63.08,169.89,169.82,1.9433]
[1747596198910,68.49019737,169.92,169.82,65.0033]
[1747596199103,5.43019737,169.92,169.83,1.8571]
[1747596199305,5.43019737,169.92,169.89,5.8839]
[1747596199608,5.43019737,169.92,169.86,63.08]
[1747596200609,5.43019737,169.92,169.89,5.8839]
[1747596201009,5.43019737,169.92,169.86,63.08]
[1747596201216,5.43019737,169.92,169.86,68.9649]
[1747596201512,5.43019737,169.92,169.86,63.08]
[1747596201710,63.06,169.93,169.86,63.08]
[1747596202607,63.04,169.94,169.86,63.08]
[1747596202910,63.04,169.94,169.86,126.12]
[1747596203713,5.8835,169.91,169.87,5.8848]
[1747596203906,5.8835,169.91,169.86,63.06]
[1747596204211,63.04,169.94,169.86,63.06]
[1747596204412,5.8834,169.92,169.86,63.06]
[1747596204709,63.04,169.94,169.84,1.9021]
[1747596204914,63.06,169.93,169.84,64.9621]
[1747596205313,5.8841,169.9,169.86,5.885]
[1747596205913,63.06,169.93,169.84,1.9021]
[1747596206410,5.8832,169.92,169.88,5.8842]
[1747596206816,63.06,169.93,169.84,1.9021]
[1747596207517,5.8835,169.91,169.87,5.8846]
[1747596208321,5.8832,169.92,169.87,5.8846]
[1747596208616,5.8832,169.92,169.88,5.8845]
[1747596209416,5.8835,169.91,169.87,5.8848]
[1747596210821,5.8832,169.92,169.88,5.8845]
[1747596213022,5.8829,169.93,169.84,1.9021]
[1747596213525,5.8829,169.93,169.9,5.8838]
[1747596214220,5.8829,169.93,169.87,63.06]
[1747596214420,62.98,169.94,169.87,63.06]
[1747596214824,5.8834,169.92,169.89,5.8841]
[1747596216626,5.8835,169.91,169.88,5.8845]
[1747596216827,62.98,169.94,169.87,63.06]
[1747596217429,5.8829,169.93,169.89,5.8841]
[1747596217630,62.98,169.94,169.89,5.8841]
[1747596218032,5.8831,169.92,169.89,5.8841]
[1747596220532,5.8829,169.93,169.9,5.8838]
[1747596221732,62.98,169.94,169.87,63.06]
[1747596222232,62.98,169.94,169.84,64.9621]
[1747596222429,62.98,169.94,169.87,5.8846]
[1747596222837,62.98,169.94,169.84,64.9621]
[1747596223032,5.8837,169.91,169.87,5.8849]
[1747596223231,5.8837,169.91,169.84,64.9621]
[1747596223431,5.8834,169.92,169.88,5.8842]
[1747596223630,68.37019737,169.93,169.88,5.8842]
[1747596224036,5.8835,169.91,169.88,5.8842]
[1747596224944,5.8832,169.92,169.89,5.8841]
[1747596227333,5.8835,169.91,169.89,5.8841]
[1747596227532,5.43019737,169.95,169.84,64.9621]
[1747596227728,5.8826,169.94,169.84,64.9621]
[1747596227935,5.43019737,169.95,169.84,73.87055166]
[1747596229127,5.43019737,169.95,169.93,5.8826]
[1747596229737,5.43019737,169.95,169.92,5.8831]
[1747596230044,5.43019737,169.95,169.91,62.9]
[1747596230940,5.43019737,169.95,169.94,5.8824]
[1747596231135,5.881,169.99,169.91,62.9]
[1747596231442,5.8812,169.98,169.91,62.9]
[1747596232539,5.8812,169.98,169.93,5.8827]
[1747596232741,62.9,170.0,169.91,62.9]
[1747596233242,5.8813,169.98,169.94,5.8824]
[1747596234734,5.8815,169.97,169.93,5.8827]
[1747596235538,5.8812,169.98,169.94,5.8824]
[1747596235740,62.9,170.0,169.94,5.8824]
[1747596237448,5.8813,169.98,169.95,5.8821]
[1747596238546,5.8808,169.99,169.96,5.8817]
[1747596239651,5.43019737,170.02,169.99,5.8806]
[1747596239950,5.43019737,170.02,169.99,62.88]
[1747596240642,11.30989737,170.02,169.99,68.7607]
[1747596240837,5.43019737,170.02,169.99,5.8807]
[1747596241044,70.17057473,170.04,169.99,5.8807]
[1747596241242,5.8794,170.03,169.99,5.8807]
[1747596241553,62.84,170.04,170.0,5.8803]
[1747596242145,62.84,170.04,169.96,62.88]
[1747596242146,62.84,170.04,169.98,5.8807]
[1747596242351,62.84,170.04,169.96,62.88]
[1747596242852,62.84,170.04,169.99,5.8804]
[1747596243155,5.8794,170.03,169.99,5.8804]
[1747596245053,5.8798,170.02,169.99,5.8804]
[1747596245551,62.84,170.04,169.96,62.88]
[1747596246147,62.84,170.04,169.98,5.881]
[1747596246349,62.84,170.04,169.96,62.88]
[1747596246546,1.9569,170.03,169.96,68.7617]
[1747596246752,5.8807,170.0,169.96,68.7617]
[1747596247054,1.9569,170.03,169.96,62.88]
[1747596247444,1.9569,170.03,169.93,62.88]
[1747596247647,7.38709737,170.03,169.93,62.88]
[1747596247848,7.38709737,170.03,169.99,5.8805]
[1747596249455,7.38709737,170.03,169.93,62.88]
[1747596249656,5.43019737,170.03,169.93,62.88]
[1747596249849,5.43019737,170.03,169.93,71.78845166]
[1747596250045,5.43019737,170.03,170.0,5.8801]
[1747596251258,5.43019737,170.03,169.98,62.88]
[1747596252159,5.8784,170.06,170.02,5.8794]
[1747596253058,5.8784,170.06,170.03,5.8793]
[1747596253257,62.78,170.07,169.98,62.88]
[1747596253448,5.43019737,170.08,169.98,62.88]
[1747596253651,5.43019737,170.08,170.05,5.8784]
[1747596253961,11.30789737,170.08,169.98,62.88]
[1747596254257,11.30789737,170.08,170.04,5.8788]
[1747596254452,11.30789737,170.08,170.02,62.86]
[1747596254453,5.43019737,170.08,170.02,62.86]
[1747596254659,74.06709737,170.1,170.06,5.878]
[1747596254859,5.43019737,170.1,170.03,62.86]
[1747596255252,5.43019737,170.1,170.09,5.8772]
[1747596258259,5.43019737,170.1,170.08,5.8775]
[1747596259569,5.8762,170.12,170.08,5.8775]
[1747596260458,5.8766,170.11,170.08,5.8775]
[1747596260659,2.0053,170.17,170.08,5.8775]
[1747596260962,5.8764,170.12,170.08,5.8775]
[1747596261268,2.0053,170.17,170.09,5.8772]
[1747596261466,5.8758,170.14,170.09,5.8772]
[1747596261665,2.0053,170.17,170.09,5.8772]
[1747596261865,2.0053,170.17,170.07,62.86]
[1747596262169,5.8753,170.15,170.07,62.86]
[1747596262467,5.8753,170.15,170.1,5.8766]
[1747596262764,5.8753,170.15,170.07,62.86]
[1747596262967,5.8753,170.15,170.11,5.8763]
[1747596263665,62.72,170.16,170.12,5.8762]
[1747596263856,2.0053,170.17,170.12,5.8762]
[1747596264055,5.8751,170.16,170.12,5.8762]
[1747596264967,5.8753,170.15,170.11,5.8765]
[1747596265168,2.0053,170.17,170.07,62.86]
[1747596265465,5.8753,170.15,170.11,5.8764]
[1747596265667,5.8753,170.15,170.07,62.86]
[1747596265971,5.8748,170.16,170.12,5.8762]
[1747596266169,5.8748,170.16,170.07,62.86]
[1747596266372,75.56015166,170.2,170.07,62.86]
[1747596266566,5.8742,170.18,170.14,5.8755]
[1747596266761,62.86,170.2,170.12,62.72]
[1747596267072,5.8737,170.2,170.12,62.72]
[1747596267266,5.8737,170.2,170.13,1.8584]
[1747596267775,5.8739,170.19,170.15,5.8749]
[1747596267959,1.9805,170.22,170.13,1.8584]
[1747596268367,64.6805,170.22,170.13,1.8584]
[1747596269069,5.8733,170.21,170.17,5.8744]
[1747596269271,64.6805,170.22,170.17,5.8744]
[1747596269774,5.8737,170.2,170.16,5.8747]
[1747596270170,5.8737,170.2,170.13,1.8584]
[1747596270571,5.8737,170.2,170.16,5.8746]
[1747596271272,7.8535,170.22,170.18,5.874]
[1747596271477,1.9805,170.22,170.18,5.874]